bitfinex/quotes_ETHUSD_20250814
["timestamp","ask_amount","ask_price","bid_price","bid_amount"]
[1755182669445,0.1072,4671.5,4671.4,0.001]
[1755182670580,2.24784005,4671.5,4671.4,3.931]
[1755182670929,0.1072,4671.5,4671.4,3.931]
[1755182671165,0.55,4672.8,4671.4,5.0193]
[1755182671369,0.1072,4671.9,4671.4,3.931]
[1755182671576,2.14064005,4671.5,4671.4,0.001]
[1755182671734,2.24784005,4671.5,4671.4,3.93]
[1755182672077,0.1072,4671.5,4671.4,3.93]
[1755182673274,3.0,4672.4,4671.4,3.9308]
[1755182673498,0.1072,4671.5,4671.4,0.0018]
[1755182673700,3.84024005,4671.5,4671.4,0.0018]
[1755182673902,6.84024005,4671.5,4671.4,0.0018]
[1755182674200,5.69064005,4671.5,4671.4,0.0018]
[1755182674424,6.84024005,4671.5,4671.4,0.0018]
[1755182674701,2.69086919,4671.0,4670.9,0.001]
[1755182674884,6.84046919,4671.0,4670.9,0.001]
[1755182675603,5.14091502,4670.9,4667.7,0.6576]
[1755182675764,0.19666374,4670.8,4668.7,3.929]
[1755182675961,0.55,4670.7,4670.1,2.14125191]
[1755182676177,0.55,4670.7,4670.0,2.14130063]
[1755182676496,0.55,4670.8,4670.0,2.14130063]
[1755182676683,0.55,4670.8,4669.8,3.929]
[1755182676880,3.55,4670.8,4669.8,3.929]
[1755182677112,0.55,4670.6,4669.8,6.07040872]
[1755182677298,0.60628801,4670.7,4669.8,3.929]
[1755182677503,0.4509,4671.5,4670.0,2.14132762]
[1755182677797,0.4509,4671.5,4669.8,5.0173]
[1755182677997,0.19706291,4672.0,4669.2,0.6576]
[1755182678199,0.4509,4671.5,4670.5,2.1410633]
[1755182678402,1.44576291,4671.4,4669.2,0.6576]
[1755182678564,0.55,4671.1,4669.3,3.928]
[1755182678895,0.55,4670.0,4669.3,3.928]
[1755182679261,0.74735539,4670.0,4669.3,3.928]
[1755182679462,0.55,4669.8,4669.3,3.928]
[1755182679664,0.74735539,4669.8,4669.3,3.928]
[1755182679918,0.55,4670.2,4669.3,3.928]
[1755182680120,0.15711887,4669.8,4668.2,0.6576]
[1755182680270,0.19759957,4669.7,4668.7,3.927]
[1755182680466,0.55,4669.5,4668.8,2.14183432]
[1755182680723,3.0,4669.4,4668.8,2.14187075]
[1755182680906,0.16065635,4669.8,4668.7,3.927]
[1755182681105,0.1976796,4669.9,4668.8,0.3927]
[1755182681314,0.55,4669.7,4668.1,3.928]
[1755182681512,2.69158908,4669.5,4668.1,3.928]
[1755182681809,0.55,4669.1,4668.1,3.928]
[1755182682004,0.55,4668.9,4667.8,2.14233686]
[1755182682204,2.14192387,4668.7,4668.2,3.927]
[1755182682520,2.14211703,4668.3,4667.9,3.927]
[1755182682721,0.55,4669.0,4667.9,3.927]
[1755182682722,3.0,4668.4,4667.9,3.927]
[1755182682922,0.19790683,4668.3,4667.9,3.9278]
[1755182683096,0.55,4668.1,4667.9,0.0008]
[1755182683303,7.0397519,4668.0,4667.9,0.0008]
[1755182683486,0.55,4667.8,4666.1,3.927]
[1755182683689,0.55,4667.1,4665.6,2.1433382]
[1755182684002,0.1072,4666.1,4666.0,2.1431633]
[1755182684185,0.1072,4666.8,4666.2,0.1072]
[1755182684383,0.19795306,4666.7,4666.2,0.1072]
[1755182684583,0.1072,4666.3,4665.3,2.14348487]
[1755182684882,0.1072,4666.3,4665.6,0.1072]
[1755182685083,0.1072,4666.7,4666.1,0.1072]
[1755182685339,0.19790514,4666.6,4665.7,1.0883]
[1755182685488,0.1072,4666.5,4666.0,2.14315438]
[1755182685688,0.1072,4666.5,4665.8,0.1072]
[1755182686107,0.19786423,4666.4,4665.4,0.71587849]
[1755182686434,0.19786423,4666.4,4665.1,3.927]
[1755182686435,0.1072,4665.8,4665.1,0.1072]
[1755182686634,0.1072,4665.8,4665.7,2.14330111]
[1755182686814,0.16116073,4667.0,4665.7,0.6576]
[1755182686982,0.19780761,4666.9,4666.0,0.1072]
[1755182687183,0.19780761,4666.8,4666.1,2.14311737]
[1755182687386,0.1072,4666.5,4666.4,2.14297959]
[1755182687703,0.1072,4666.8,4666.5,2.14293228]
[1755182687914,0.1624925,4668.8,4666.6,5.03572887]
[1755182688095,0.1072,4668.2,4667.6,0.1072]
[1755182688299,2.59255938,4669.3,4667.7,0.1072]
[1755182688300,0.1072,4668.4,4667.7,0.1072]
[1755182688509,2.33976493,4668.3,4667.1,2.14264837]
[1755182688707,0.19765238,4668.2,4666.7,0.6576]
[1755182688928,2.14151105,4669.6,4667.9,2.14225888]
[1755182689136,0.19764929,4669.5,4668.0,0.02142245]
[1755182689326,0.19764929,4669.4,4667.6,1.0883]
[1755182689521,0.19764929,4669.3,4667.6,1.0883]
[1755182689842,0.19776399,4669.2,4667.8,2.14233686]
[1755182690040,0.13466629,4671.5,4668.3,2.1421074]
[1755182690211,0.1977018,4671.4,4668.5,3.0]
[1755182690415,0.1977018,4671.3,4668.6,5.03571969]
[1755182690603,0.1977018,4671.2,4669.5,2.14153235]
[1755182690938,2.14086919,4671.0,4669.1,1.0883]
[1755182691152,2.14110225,4670.5,4668.6,6.06795768]
[1755182691307,0.1977018,4670.4,4668.7,0.64986577]
[1755182691513,3.1977018,4670.3,4668.7,0.64986577]
[1755182691754,0.1977018,4670.2,4668.9,2.14183212]
[1755182692045,1.3332018,4670.1,4667.6,1.1229]
[1755182692203,0.1977018,4670.0,4667.7,5.0479]
[1755182692403,0.55,4670.5,4667.8,5.0479]
[1755182692404,0.1977018,4669.9,4667.8,5.0479]
[1755182692620,0.55,4669.7,4668.1,2.14217275]
[1755182692825,0.55,4669.5,4667.8,3.925]
[1755182693047,2.1416945,4669.2,4667.8,3.9258]
[1755182693206,2.14188814,4668.8,4667.8,3.9258]
[1755182693402,0.55,4668.6,4667.8,0.0008]
[1755182693635,2.33976086,4668.5,4667.8,0.0008]
[1755182693941,2.33977811,4668.4,4667.8,0.0008]
[1755182694100,2.14221465,4668.1,4667.8,0.0008]
[1755182694440,0.1977018,4668.0,4667.0,3.924]
[1755182694613,0.1977018,4667.9,4667.3,2.14252491]
[1755182694817,0.1977018,4667.8,4667.2,2.14261031]
[1755182695023,0.1977018,4667.7,4667.0,3.924]
[1755182695226,0.1977018,4667.6,4667.0,6.06665894]
[1755182695426,0.1977018,4667.5,4667.0,3.924]
[1755182695628,0.1977018,4667.4,4667.2,2.14261124]
[1755182695812,2.1421967,4668.2,4667.2,2.14261124]
[1755182696031,2.34041141,4668.1,4667.2,2.14261061]
[1755182696233,0.19819929,4668.0,4667.0,3.924]
[1755182696430,0.63189929,4667.9,4667.0,3.924]
[1755182696741,2.14244189,4667.6,4667.0,3.924]
[1755182696942,0.19819929,4667.5,4666.7,3.923]
[1755182697161,0.19819929,4667.4,4666.7,2.14282242]
[1755182697316,0.19819929,4667.3,4663.4,0.642811]
[1755182697517,0.19819929,4667.2,4666.6,2.14288296]
[1755182697721,0.19819929,4667.1,4665.8,3.923]
[1755182698044,2.1427963,4666.8,4665.8,6.06621413]
[1755182698246,0.19819929,4666.7,4665.9,2.14320714]
[1755182698447,0.19819929,4666.6,4666.0,0.1072]
[1755182698647,0.19819929,4666.5,4666.0,0.1072]
[1755182698855,0.19819929,4666.4,4666.0,2.25036064]
[1755182699052,0.19819929,4666.3,4666.0,0.1072]
[1755182699237,0.19819929,4666.2,4665.8,3.923]
[1755182699426,0.19845427,4666.1,4665.8,3.923]
[1755182699632,0.19845427,4666.0,4665.8,3.923]
[1755182699838,0.19845427,4665.9,4665.8,3.923]
[1755182700351,0.19845427,4665.9,4665.7,0.1072]
[1755182700352,0.19845427,4665.9,4665.3,0.1072]
[1755182700552,0.19845427,4665.8,4665.3,0.1072]
[1755182700860,0.1072,4665.5,4664.9,0.001]
[1755182701157,0.1072,4665.2,4664.9,0.001]
[1755182701340,0.19864182,4665.1,4664.9,0.001]
[1755182701653,0.19864182,4665.0,4664.9,0.001]
[1755182703055,2.77596454,4665.0,4664.9,0.001]
[1755182703257,7.53043465,4665.0,4664.9,0.0018]
[1755182703465,7.53043465,4665.0,4664.9,1e-08]
[1755182703628,2.6938525,4664.5,4664.4,0.001]
[1755182703824,6.32619432,4664.5,4664.4,0.001]
[1755182704032,3.63234182,4664.5,4664.4,0.001]
[1755182704340,3.30584182,4664.5,4664.4,0.001]
[1755182704536,0.30584182,4664.5,4664.4,0.001]
[1755182704838,0.19864182,4664.5,4664.4,2.14489846]
[1755182705023,0.4337,4666.5,4664.4,1.25253898]
[1755182705227,0.19850886,4666.4,4665.5,2.14337168]
[1755182705458,0.19850886,4666.3,4665.5,6.27869415]
[1755182705631,0.1072,4666.1,4665.6,0.1072]
[1755182705838,0.1072,4666.1,4665.2,0.4688]
[1755182705839,0.19850886,4666.0,4665.2,3.921]
[1755182706044,0.1072,4666.1,4666.0,2.1431633]
[1755182706262,0.30564118,4666.1,4665.6,0.1072]
[1755182706569,0.63214118,4666.0,4665.4,2.14341884]
[1755182706735,0.19844118,4665.9,4664.9,0.1072]
[1755182706933,0.55,4666.6,4665.4,2.14343893]
[1755182706934,0.1072,4665.5,4665.4,2.14343893]
[1755182707133,0.1072,4665.8,4665.7,2.14330111]
[1755182707332,0.30569922,4665.8,4665.7,2.14330111]
[1755182707536,0.19849922,4665.8,4665.7,6.06330111]
[1755182707740,0.19849922,4665.8,4665.7,8.00686845]
[1755182707940,0.1072,4667.0,4665.7,8.11406845]
[1755182708139,0.19850214,4666.9,4665.7,5.97076734]
[1755182708331,0.19850214,4666.8,4666.6,2.14288722]
[1755182708663,0.1072,4666.6,4666.3,2.14298658]
[1755182708859,0.19850214,4666.5,4666.3,2.14301882]
[1755182709064,0.19850214,4666.4,4665.6,2.14334705]
[1755182709227,0.19850214,4666.3,4665.5,3.92]
[1755182709426,2.14312496,4666.1,4665.5,3.92]
[1755182709633,0.19850214,4666.0,4665.5,3.92]
[1755182709829,1.33400214,4665.9,4665.0,3.919]
[1755182710041,0.19850214,4665.8,4665.6,2.14334151]
[1755182710248,0.19850214,4665.8,4665.2,0.1072]
[1755182710249,0.19850214,4665.7,4665.2,0.1072]
[1755182710445,0.19850214,4665.6,4665.5,2.14339299]
[1755182710630,1.1355,4668.0,4665.6,2.14334705]
[1755182710854,0.19871647,4667.9,4666.6,0.1072]
[1755182711064,0.1072,4667.4,4666.7,3.919]
[1755182711244,0.19871647,4667.3,4667.2,2.14261227]
[1755182711582,0.19871647,4667.3,4667.2,2.5711418]
[1755182711780,0.10146758,4668.8,4668.1,2.14216311]
[1755182711964,1.1355,4669.2,4668.0,3.919]
[1755182711965,0.19869081,4668.7,4668.0,3.919]
[1755182712185,0.1072,4668.1,4667.6,3.918]
[1755182712385,0.19869081,4668.0,4667.4,3.918]
[1755182712583,0.19869081,4667.9,4667.5,3.918]
[1755182712748,0.19869081,4667.8,4667.7,2.14238275]
[1755182713082,0.19869081,4669.0,4668.0,2.14222413]
[1755182713276,3.0,4669.2,4667.8,0.1072]
[1755182713277,0.1072,4668.4,4667.8,0.1072]
[1755182713479,0.1072,4668.4,4667.5,0.0008]
[1755182713700,0.55,4668.2,4667.5,0.0008]
[1755182713879,0.1072,4667.8,4667.5,0.0008]
[1755182714196,0.19871716,4668.9,4667.9,0.1072]
[1755182714343,1.1355,4669.6,4667.9,0.1072]
[1755182714344,0.1072,4669.1,4668.3,2.14206833]
[1755182714547,0.1072,4669.1,4668.6,2.1419533]
[1755182714746,0.1072,4669.3,4668.6,4.0242]
[1755182714987,0.1072,4669.3,4668.6,6.16616623]
[1755182715167,0.1072,4669.3,4668.8,2.1418572]
[1755182715344,0.1072,4669.3,4669.2,2.1416945]
[1755182715544,0.1072,4669.3,4669.2,3.2645945]
[1755182715745,0.4357,4670.9,4669.2,3.2645945]
[1755182715746,0.002,4670.9,4669.3,2.14164864]
[1755182715983,0.1072,4670.6,4670.5,2.14109838]
[1755182716157,0.002,4670.9,4670.8,2.24816086]
[1755182716346,0.002,4670.9,4670.8,2.14096086]
[1755182716685,0.002,4670.9,4670.8,4.20158045]
[1755182716982,0.002,4671.9,4671.3,2.14071359]
[1755182717168,0.1072,4674.2,4671.5,3.0]
[1755182717386,0.1072,4674.5,4673.9,0.1072]
[1755182717566,0.1072,4674.5,4674.1,2.13943419]
[1755182717760,0.1072,4674.5,4673.9,0.1072]
[1755182718002,0.1072,4674.0,4671.1,1.1229]
[1755182718305,0.1072,4673.7,4673.0,0.1072]
[1755182718472,0.15914733,4675.2,4671.7,1.1229]
[1755182718473,0.4337,4673.8,4671.8,2.14048012]
[1755182718676,0.1072,4672.9,4672.2,0.1072]
[1755182718873,2.14004451,4672.8,4672.0,0.1072]
[1755182719078,2.1402328,4672.4,4672.1,3.914]
[1755182719273,0.1072,4672.4,4672.1,3.914]
[1755182719493,0.7018,4673.1,4672.1,3.914]
[1755182719494,0.1072,4673.1,4672.3,0.1072]
[1755182719894,0.1072,4673.4,4672.7,0.1072]
[1755182720202,0.4337,4673.4,4672.8,3.912]
[1755182720370,2.24718463,4673.0,4672.9,3.912]
[1755182720567,3.0,4672.9,4672.3,3.912]
[1755182720771,3.0,4672.9,4671.7,3.912]
[1755182720772,2.14027352,4672.3,4671.7,3.912]
[1755182721101,0.1072,4671.9,4671.7,3.912]
[1755182721300,2.14050387,4671.8,4671.4,5.137]
[1755182721506,0.1072,4671.9,4671.5,3.912]
[1755182721680,2.14044179,4672.0,4671.4,5.137]
[1755182721867,2.24770076,4671.9,4671.5,3.912]
[1755182722061,0.1072,4671.9,4671.6,3.912]
[1755182722288,1.1109,4671.8,4671.7,3.912]
[1755182722494,6.68373602,4671.8,4671.7,3.912]
[1755182722764,2.14086919,4671.0,4669.9,2.14134065]
[1755182722964,0.1072,4670.8,4670.2,0.1072]
[1755182723177,2.1410067,4670.7,4669.9,0.0008]
[1755182723378,0.55,4670.6,4669.9,0.0008]
[1755182723703,2.14132762,4670.0,4669.6,3.91]
[1755182723892,0.78441385,4670.5,4669.6,3.91]
[1755182724087,2.14130716,4670.1,4669.6,3.91]
[1755182724291,3.0,4670.4,4668.4,5.134]
[1755182724479,2.14158871,4669.5,4668.5,3.91]
[1755182724677,2.141513,4669.6,4668.4,5.134]
[1755182724906,2.14132762,4670.0,4669.0,2.14177461]
[1755182725091,2.14138948,4669.9,4668.8,2.14183622]
[1755182725291,0.55,4670.4,4668.4,5.76212]
[1755182725504,2.14136032,4670.0,4668.9,2.14179879]
[1755182725713,0.55,4670.4,4668.4,5.134]
[1755182725909,2.14142464,4669.8,4668.5,6.05101563]
[1755182726105,0.4351,4670.1,4668.4,5.134]
[1755182726307,0.55,4669.9,4668.5,3.909]
[1755182726509,2.14161252,4669.4,4668.5,3.909]
[1755182726713,0.4351,4670.0,4668.8,2.14186033]
[1755182727015,3.0,4669.9,4668.9,3.909]
[1755182727182,2.14148109,4669.7,4668.9,3.909]
[1755182727390,2.69116731,4670.4,4668.9,3.909]
[1755182727585,3.0,4670.2,4668.9,2.14178912]
[1755182727785,0.9851,4670.2,4669.0,3.909]
[1755182727988,3.0,4670.0,4669.0,3.909]
[1755182728314,2.14147486,4669.7,4669.0,3.909]
[1755182728613,2.14136778,4670.0,4669.0,6.05074197]
[1755182728813,3.0,4670.2,4669.0,3.909]
[1755182729107,0.10861385,4670.5,4669.2,2.1416945]
[1755182729314,0.10861385,4670.5,4668.6,0.6836]
[1755182729315,2.14137415,4669.9,4668.6,0.6836]
[1755182729481,0.4351,4669.8,4668.7,3.908]
[1755182729676,3.25234347,4669.8,4668.8,3.908]
[1755182729876,4.1109,4669.8,4668.8,3.908]
[1755182730076,3.55,4670.0,4668.9,2.14183212]
[1755182730278,1.11209187,4670.4,4669.2,2.14168129]
[1755182730513,0.59740517,4670.3,4669.3,3.907]
[1755182730815,2.14212321,4668.3,4666.9,0.4646]
[1755182731018,3.0,4668.8,4668.2,2.14214803]
[1755182731174,1.1109,4669.2,4668.3,3.907]
[1755182731374,2.14147719,4669.7,4668.3,3.907]
[1755182731375,0.55,4669.7,4668.3,3.907]
[1755182731604,3.0,4669.7,4668.3,4.51192449]
[1755182731916,2.14133287,4670.0,4669.0,2.14174585]
[1755182732106,0.55,4670.4,4669.1,3.907]
[1755182732306,0.55,4670.4,4669.2,3.907]
[1755182732506,0.55,4670.0,4668.3,0.60492449]
[1755182732698,0.55,4669.8,4668.4,3.907]
[1755182732895,0.4351,4670.0,4668.5,2.14201563]
[1755182733118,2.14142897,4669.8,4668.4,3.907]
[1755182733328,0.9851,4670.0,4668.5,3.906]
[1755182733627,0.1072,4669.4,4668.7,0.1072]
[1755182733922,0.1072,4669.4,4669.1,2.14172932]
[1755182734123,3.0,4669.9,4668.7,0.1072]
[1755182734287,0.1072,4669.6,4669.0,2.14177829]
[1755182734656,0.1072,4669.6,4668.7,0.1072]
[1755182734827,0.1072,4669.6,4668.7,0.61560122]
[1755182735152,0.1072,4669.6,4669.0,0.1072]
[1755182735431,0.6758,4670.3,4669.4,2.14159182]
[1755182735595,0.1072,4669.8,4669.5,3.905]
[1755182735797,2.14066893,4671.5,4669.5,3.905]
[1755182735798,0.1072,4670.7,4669.8,2.14141933]
[1755182736038,0.002,4671.8,4669.9,1.1472]
[1755182736225,0.1072,4671.6,4671.2,2.14076806]
[1755182736433,0.1072,4671.6,4671.3,3.905]
[1755182736629,0.002,4671.8,4671.7,2.1405484]
[1755182736835,0.002,4671.8,4671.4,0.1072]
[1755182737034,0.002,4671.8,4671.6,2.14059041]
[1755182737412,0.002,4671.8,4671.7,3.905]
[1755182737612,0.1092,4671.8,4671.7,6.0455484]
[1755182737818,0.002,4671.8,4671.7,6.0455484]
[1755182738031,0.002,4671.8,4671.7,3.905]
[1755182738236,0.002,4671.8,4671.7,6.0455484]
[1755182739209,0.002,4671.8,4671.5,0.1072]
[1755182739462,0.002,4671.8,4671.6,3.903]
[1755182739750,0.002,4671.8,4671.6,2.14059415]
[1755182739930,0.002,4671.8,4671.2,2.14076759]
[1755182740137,0.002,4671.8,4671.7,3.903]
[1755182740510,0.002,4671.8,4671.7,6.0435484]
[1755182740712,0.002,4671.8,4671.7,2.1405484]
[1755182740912,0.002,4671.8,4671.7,6.0425484]
[1755182741357,0.002,4671.8,4671.7,7.66238637]
[1755182741710,0.002,4671.8,4671.7,6.97778637]
[1755182741913,0.002,4671.8,4671.7,8.12498637]
[1755182742783,0.0012,4671.8,4671.7,8.12498637]
[1755182742970,0.002,4672.9,4672.8,2.14004451]
[1755182743173,0.002,4672.9,4672.8,6.04104451]
[1755182743374,1e-08,4672.9,4672.8,8.00636039]
[1755182743559,0.002,4673.9,4672.8,5.86711588]
[1755182743759,0.002,4673.9,4672.8,1.96611588]
[1755182743959,0.002,4673.9,4673.6,2.13965328]
[1755182744172,0.002,4673.9,4673.7,3.899]
[1755182744370,0.002,4673.9,4673.8,2.13958663]
[1755182745150,0.002,4673.9,4673.8,3.30818249]
[1755182745348,0.002,4673.9,4673.8,8.41978663]
[1755182745562,0.002,4673.9,4673.8,9.86563215]
[1755182745764,1e-08,4673.9,4673.8,12.86563215]
[1755182747089,1e-08,4673.9,4673.8,12.61543215]
[1755182747253,1e-08,4673.9,4673.8,11.16958663]
[1755182747461,1e-08,4673.9,4673.8,7.27258663]
[1755182747961,1e-08,4673.9,4673.8,11.16958663]
[1755182748161,1e-08,4673.9,4673.8,11.16858663]
[1755182748353,1e-08,4673.9,4673.8,5.133]
[1755182748553,1e-08,4673.9,4673.8,11.16858663]
[1755182748980,1e-08,4673.9,4673.8,16.04941154]
[1755182749294,0.4351,4677.6,4674.2,0.55]
[1755182749467,0.4351,4677.6,4674.3,1.1472]
[1755182749670,2.13789417,4677.5,4674.8,3.0]
[1755182749869,2.13795901,4677.4,4676.4,2.13837801]
[1755182750075,2.13795901,4677.4,4675.0,5.13903743]
[1755182750076,1.1109,4677.3,4676.5,3.895]
[1755182750260,1.1109,4677.3,4676.7,2.13824734]
[1755182750460,0.002,4677.7,4676.8,0.02138214]
[1755182750662,0.002,4677.7,4676.9,3.895]
[1755182750960,2.13800837,4677.3,4677.0,3.894]
[1755182751160,2.13819819,4676.9,4676.7,3.894]
[1755182751393,6.12331416,4676.8,4676.7,3.894]
[1755182751604,6.12331416,4676.8,4676.2,5.131]
[1755182751605,3.0,4676.7,4676.2,5.131]
[1755182751756,0.55,4676.4,4674.1,5.131]
[1755182751960,3.0,4676.5,4674.1,5.131]
[1755182751961,0.55,4676.2,4674.2,3.894]
[1755182752181,0.55,4676.0,4674.2,4.92958249]
[1755182752410,2.13879387,4675.6,4674.2,4.92958249]
[1755182752721,3.55,4676.0,4674.4,2.13926816]
[1755182752722,2.13890823,4675.3,4674.4,2.13926816]
[1755182752920,0.1072,4675.4,4674.7,0.1072]
[1755182753126,0.7468,4675.4,4674.7,0.1072]
[1755182753328,0.58277,4675.3,4674.8,3.892]
[1755182753489,0.4619,4675.3,4674.8,3.892]
[1755182753688,0.4619,4675.3,4674.8,4.0]
[1755182753889,0.1072,4675.4,4674.8,4.0]
[1755182754513,0.7468,4675.8,4675.1,0.1072]
[1755182754724,3.7468,4675.8,4675.1,0.1072]
[1755182754939,0.1072,4675.8,4675.3,2.13889133]
[1755182755095,0.1072,4675.8,4675.4,3.892]
[1755182755299,2.13841399,4676.4,4675.4,3.892]
[1755182755629,1.1015,4676.3,4675.5,3.891]
[1755182755830,3.0,4676.2,4674.8,0.0008]
[1755182756017,3.0,4676.0,4674.9,6.03007515]
[1755182756218,3.0,4676.0,4674.9,3.891]
[1755182756536,2.13863359,4675.9,4675.0,0.38918]
[1755182756734,0.4619,4676.2,4675.1,3.891]
[1755182756896,3.4619,4676.2,4675.3,2.13885781]
[1755182757097,0.55,4677.0,4675.6,2.13874567]
[1755182757098,3.0,4676.7,4675.6,2.13874567]
[1755182757297,0.4619,4676.7,4675.7,3.89]
[1755182757503,2.60019899,4676.7,4675.8,3.89]
[1755182757709,0.4619,4676.7,4675.8,3.89]
[1755182758235,0.4619,4676.7,4675.9,2.13862571]
[1755182758737,0.4619,4676.7,4675.8,3.89]
[1755182759126,0.4619,4676.7,4674.1,7.27041883]
[1755182759127,0.4619,4676.7,4674.2,3.0]
[1755182759332,0.6396,4676.6,4675.1,6.02799167]
[1755182759642,0.6396,4676.6,4675.7,2.13870374]
[1755182759840,0.6396,4676.6,4675.8,3.889]
[1755182760038,2.77791938,4676.6,4675.8,3.889]
[1755182760246,0.83779981,4676.5,4674.8,0.0008]
[1755182760544,0.4619,4676.4,4674.8,0.0008]
[1755182760747,0.4619,4676.4,4673.8,0.436]
[1755182760748,2.13857998,4676.0,4674.3,2.13935335]
[1755182760908,5.13871719,4675.7,4674.5,2.1392583]
[1755182761106,1.1015,4675.9,4674.4,6.02728212]
[1755182761318,1.1015,4675.9,4674.7,2.13916353]
[1755182761519,1.1015,4675.9,4675.1,2.13898959]
[1755182761738,4.1015,4675.9,4675.2,3.888]
[1755182762038,3.0,4675.8,4675.2,3.888]
[1755182762238,2.13872376,4675.7,4674.8,2.13911831]
[1755182762430,2.13872376,4675.7,4674.9,3.887]
[1755182762628,2.13884995,4675.5,4674.5,2.13925306]
[1755182762829,0.4619,4675.4,4674.4,2.13930311]
[1755182763143,2.13889107,4675.4,4674.5,2.13926592]
[1755182763438,2.77837087,4675.6,4674.4,2.13927519]
[1755182763663,2.13880868,4675.5,4674.2,2.13938675]
[1755182763843,2.13908353,4674.9,4674.3,3.886]
[1755182764015,0.4619,4675.1,4674.4,3.886]
[1755182764537,0.4619,4675.1,4674.3,2.13935274]
[1755182764740,0.6396,4675.5,4674.4,3.886]
[1755182764950,0.55,4675.8,4674.4,6.02530963]
[1755182765152,3.0,4675.7,4674.7,2.13916785]
[1755182765316,0.1072,4675.2,4674.5,0.1072]
[1755182765519,0.1072,4675.6,4675.0,0.1072]
[1755182765825,2.13894592,4675.2,4675.1,3.885]
[1755182766022,2.13904823,4675.0,4674.3,0.94106428]
[1755182766254,0.1072,4674.8,4674.2,0.108]
[1755182766556,0.1072,4674.8,4674.4,3.885]
[1755182767224,0.1072,4674.8,4674.6,2.13919787]
[1755182767449,0.4619,4675.9,4674.9,2.13903775]
[1755182767777,0.1072,4675.4,4675.0,3.885]
[1755182767946,0.1072,4675.4,4675.1,3.884]
[1755182768141,0.1072,4675.4,4675.2,2.1389238]
[1755182768350,0.1072,4675.4,4675.1,3.884]
[1755182769372,0.002,4675.5,4675.2,2.13894592]
[1755182769574,0.002,4675.5,4675.4,2.24605442]
[1755182770285,0.002,4675.5,4675.4,2.93095442]
[1755182770500,0.002,4675.5,4675.4,2.24605442]
[1755182770643,0.002,4675.5,4675.4,3.36695442]
[1755182770848,0.002,4675.5,4675.4,4.34799535]
[1755182771346,0.002,4675.5,4675.4,3.91199535]
[1755182771551,0.002,4675.5,4675.4,4.34799535]
[1755182773286,0.19931565,4676.7,4676.6,2.1383056]
[1755182773496,0.002,4676.9,4676.8,2.13821416]
[1755182773996,0.002,4676.9,4676.8,3.2804963]
[1755182774181,0.002,4676.9,4676.8,2.13821416]
[1755182774487,0.002,4676.9,4676.8,2.13901416]
[1755182775259,0.002,4676.9,4676.8,6.01901416]
[1755182775486,0.002,4676.9,4676.8,2.13901416]
[1755182775690,0.002,4676.9,4676.8,6.01901416]
[1755182776993,0.002,4676.9,4676.8,7.35826425]
[1755182777797,0.002,4676.9,4676.8,7.35626425]
[1755182778999,1e-08,4676.9,4676.8,8.47716425]
[1755182779662,1e-08,4676.9,4676.8,3.47826425]
[1755182779862,1e-08,4676.9,4676.8,11.14201416]
[1755182781197,1e-08,4676.9,4676.8,0.0008]
[1755182781362,1e-08,4676.9,4676.8,3.8758]
[1755182781558,1e-08,4676.9,4676.8,0.0008]
[1755182781765,0.46410001,4676.9,4676.8,3.8758]
[1755182781967,1.09120001,4676.9,4676.8,3.8758]
[1755182783684,1.71412826,4676.9,4676.8,3.8758]
[1755182783883,1.09120001,4676.9,4676.8,3.8758]
[1755182784099,1.09120001,4676.9,4676.8,3.8748]
[1755182784379,0.46410001,4676.9,4676.8,3.8748]
[1755182784630,1e-08,4676.9,4676.8,3.8748]
[1755182785430,1e-08,4676.9,4676.8,6.01301416]
[1755182785731,1e-08,4676.9,4676.8,7.74221558]
[1755182786077,1e-08,4676.9,4676.8,10.74221558]
[1755182786283,0.002,4677.9,4677.0,0.55]
[1755182786480,0.002,4677.9,4677.6,2.13784846]
[1755182786716,0.002,4677.9,4677.6,7.13774846]
[1755182786912,0.002,4677.9,4677.6,8.06531512]
[1755182787117,1e-08,4677.9,4677.6,8.06531512]
[1755182787291,1e-08,4678.2,4678.1,2.13761997]
[1755182787526,1e-08,4678.2,4678.1,7.13651997]
[1755182787731,1e-08,4678.2,4678.1,6.66911997]
[1755182787939,1e-08,4678.2,4678.1,8.0172031]
[1755182788144,0.00120001,4678.7,4678.6,2.13739152]
[1755182788349,0.00120001,4678.7,4678.6,6.00839152]
[1755182788518,0.00120001,4678.7,4678.6,2.13739152]
[1755182788843,0.00120001,4678.7,4678.6,3.87]
[1755182789154,1e-08,4679.2,4679.1,2.13716312]
[1755182789354,1e-08,4680.0,4679.9,2.68679779]
[1755182789513,1e-08,4680.0,4679.9,11.13179779]
[1755182789716,1e-08,4680.0,4679.9,7.26279779]
[1755182789946,1e-08,4680.0,4679.9,11.13179779]
[1755182790214,1e-08,4680.0,4679.9,8.995]
[1755182790644,0.46410001,4680.0,4679.9,5.126]
[1755182790955,1.09120001,4680.0,4679.9,8.994]
[1755182792242,1.09120001,4680.0,4679.9,5.126]
[1755182792447,6.33707214,4680.0,4679.9,8.992]
[1755182793047,4.09120001,4680.0,4677.8,0.6605]
[1755182793246,0.55,4679.8,4677.9,8.991]
[1755182793473,2.13714596,4679.2,4677.9,8.991]
[1755182793826,0.4641,4679.7,4679.3,2.13706393]
[1755182794092,0.4641,4679.7,4679.4,3.866]
[1755182794391,1e-08,4680.0,4679.5,3.866]
[1755182794874,1e-08,4680.0,4679.9,2.13679779]
[1755182795085,1e-08,4680.0,4679.9,6.00179779]
[1755182795257,1e-08,4680.0,4679.9,7.12969779]
[1755182795847,1e-08,4680.0,4679.9,6.00179779]